bitfinex/quotes_ETHUSD_20240630
["timestamp","ask_amount","ask_price","bid_price","bid_amount"]
[1719767854583,1.122421,3404.2,3404.1,6.40511102]
[1719767854781,1.122421,3404.2,3404.1,6.77450629]
[1719767855168,1.12221568,3404.2,3404.1,6.77450629]
[1719767856761,0.27321568,3404.2,3404.1,6.77450629]
[1719767856962,0.8615126,3404.2,3404.1,6.77450629]
[1719767857158,1.12221568,3404.2,3404.1,6.77450629]
[1719767858249,1.12212928,3404.2,3404.1,6.77450629]
[1719767861477,0.8615126,3404.2,3404.1,6.77450629]
[1719767861674,1.12215531,3404.2,3404.1,6.77450629]
[1719767861876,0.8615126,3404.2,3404.1,6.77450629]
[1719767862053,1.1221443,3404.2,3404.1,6.77450629]
[1719767863252,1.1221443,3404.2,3404.1,5.94810124]
[1719767864159,1.12226802,3404.2,3404.1,5.94810124]
[1719767864697,1.12226779,3404.2,3404.1,5.94810124]
[1719767868013,1.12225241,3404.2,3404.1,5.94810124]
[1719767871065,0.8615126,3404.2,3404.1,5.94810124]
[1719767871269,1.12225236,3404.2,3404.1,5.94810124]
[1719767871565,0.8615126,3404.2,3404.1,5.94810124]
[1719767871770,1.12223594,3404.2,3404.1,5.94810124]
[1719767874274,0.8615126,3404.2,3404.1,5.94810124]
[1719767874508,1.12224557,3404.2,3404.1,5.94810124]
[1719767877530,1.1222776,3404.2,3404.1,5.94810124]
[1719767879225,0.2732776,3404.2,3404.1,5.94810124]
[1719767879524,0.8615126,3404.2,3404.1,5.94810124]
[1719767879722,1.1222776,3404.2,3404.1,5.94810124]
[1719767880580,1.12227407,3404.2,3404.1,5.94810124]
[1719767880991,0.8615126,3404.2,3404.1,5.94810124]
[1719767881295,1.12227339,3404.2,3404.1,5.94810124]
[1719767883107,1.1222547,3404.2,3404.1,5.94810124]
[1719767884891,9.82319663,3406.8,3404.5,0.75]
[1719767885164,0.849,3406.7,3405.7,0.849]
[1719767885460,12.47,3407.3,3405.8,6.20757675]
[1719767885461,7.32,3407.2,3405.8,6.20757675]
[1719767885668,7.32,3407.2,3405.9,0.62075768]
[1719767885957,0.849,3406.7,3406.0,6.1686]
[1719767886297,7.32,3407.7,3406.0,6.53735066]
[1719767886498,0.849,3406.7,3406.0,6.53735066]
[1719767886752,0.849,3406.5,3406.1,0.71581083]
[1719767887050,0.849,3406.5,3406.2,6.22690707]
[1719767887333,0.849,3406.5,3406.2,6.53691208]
[1719767887655,7.32,3407.2,3406.3,0.0587074]
[1719767887954,0.849,3406.6,3406.3,0.0587074]
[1719767888091,0.849,3406.6,3406.4,0.36867351]
[1719767888521,0.849,3406.6,3406.3,0.0587074]
[1719767888755,0.849,3406.6,3406.5,0.36810269]
[1719767888930,0.849,3406.6,3406.4,0.36812197]
[1719767889338,0.849,3406.6,3406.2,6.1682]
[1719767889579,0.849,3406.6,3406.5,0.36792982]
[1719767889873,0.849,3406.6,3406.2,6.1682]
[1719767889874,3.0,3407.1,3406.3,0.42667866]
[1719767890080,0.849,3406.6,3406.5,0.36792982]
[1719767890274,0.849,3406.6,3406.4,6.53584911]
[1719767890437,0.849,3406.6,3406.5,0.36792982]
[1719767895471,4.1052,3407.1,3406.5,0.36792982]
[1719767895472,0.849,3406.7,3406.5,0.36792982]
[1719767895823,0.849,3406.8,3406.5,0.42663469]
[1719767896671,0.849,3406.6,3406.5,0.36792982]
[1719767897779,8.052,3407.2,3406.5,0.36792982]
[1719767897958,0.849,3406.6,3406.5,0.36792982]
[1719767898270,0.8052,3407.1,3406.4,6.1679]
[1719767898426,0.849,3406.5,3406.4,6.1679]
[1719767900142,7.32,3407.2,3406.4,6.1679]
[1719767900347,7.32,3407.2,3407.0,5.30803]
[1719767900584,0.1181858,3407.6,3407.1,6.96166372]
[1719767900725,0.1181858,3407.6,3407.3,0.849]
[1719767900921,0.1181858,3407.6,3407.4,6.2248854]
[1719767901173,0.1181858,3407.6,3407.4,6.59214936]
[1719767901377,0.1181858,3407.6,3407.5,2.9545]
[1719767901686,0.1181858,3407.6,3407.5,10.58598423]
[1719767902010,0.1181858,3407.6,3407.5,11.43498423]
[1719767902272,0.005,3408.8,3407.5,11.43498423]
[1719767902273,0.854,3408.8,3407.5,11.43498423]
[1719767902476,0.854,3408.8,3407.5,12.64022423]
[1719767902477,0.849,3408.7,3407.5,12.64022423]
[1719767902624,0.849,3408.7,3407.8,0.849]
[1719767902976,0.005,3408.8,3407.9,6.77396681]
[1719767903301,0.005,3408.8,3407.9,7.14104608]
[1719767903431,0.849,3408.7,3407.9,7.14104608]
[1719767903781,1.25719398,3409.6,3407.9,7.14104608]
[1719767904002,1.1622269,3409.6,3409.0,0.75]
[1719767904204,3.0448958,3411.1,3409.2,2.4045]
[1719767904413,1.0168958,3411.1,3409.4,2.4045]
[1719767904705,1.0168958,3411.1,3409.5,6.77123347]
[1719767904975,1.0168958,3411.1,3409.6,4.90955571]
[1719767905124,1.0168958,3411.1,3409.8,2.4045]
[1719767905328,1.25632092,3412.5,3410.2,2.4045]
[1719767905564,1.25632092,3412.5,3410.3,6.1612]
[1719767905724,2.028,3411.6,3410.4,0.85657]
[1719767905931,2.028,3411.6,3410.5,6.7108]
[1719767906226,1.25632092,3412.5,3410.5,7.07687253]
[1719767906425,2.45900711,3412.2,3410.6,0.79334425]
[1719767906753,0.43100711,3412.2,3410.7,6.7105]
[1719767907129,0.43100711,3412.2,3410.8,0.35378209]
[1719767907267,2.028,3411.9,3410.9,6.1602]
[1719767907473,0.2028,3411.8,3410.9,6.1602]
[1719767907650,0.2028,3411.8,3411.0,0.35293915]
[1719767907855,0.2028,3411.8,3411.1,0.05862484]
[1719767908036,0.2028,3411.8,3411.1,0.35292445]
[1719767908037,2.028,3411.5,3411.1,0.35292445]
[1719767908235,2.028,3411.5,3410.9,6.1602]
[1719767908438,2.028,3411.5,3411.2,0.35290521]
[1719767908686,2.028,3411.5,3410.9,6.1602]
[1719767908836,2.028,3411.5,3411.3,0.35288598]
[1719767909036,2.028,3411.5,3410.9,6.1602]
[1719767909037,2.2308,3411.4,3410.9,6.1602]
[1719767909238,2.028,3411.4,3410.9,6.1602]
[1719767910539,2.028,3411.0,3410.9,6.1602]
[1719767910872,2.028,3411.0,3410.9,6.51316291]
[1719767911077,12.6849,3411.0,3410.9,6.51316291]
[1719767911238,11.294728,3411.0,3410.9,6.1602]
[1719767911438,11.294728,3411.0,3410.9,6.51316291]
[1719767911439,12.627798,3411.0,3410.9,6.51316291]
[1719767911643,9.212225,3411.0,3410.9,6.51316291]
[1719767913443,11.640425,3411.0,3410.9,0.35296291]
[1719767913758,11.640425,3411.0,3408.9,2.2638]
[1719767913971,2.028,3410.2,3408.9,2.2638]
[1719767914190,2.1810757,3410.2,3408.9,2.2638]
[1719767914557,2.1810757,3410.2,3409.0,0.34156316]
[1719767916197,0.1530757,3410.2,3409.0,0.34156316]
[1719767917841,3.1530757,3410.2,3408.9,2.2638]
[1719767918108,0.95010757,3410.1,3408.9,2.2638]
[1719767919443,0.95010757,3410.1,3408.6,1.17503]
[1719767919655,0.95010757,3410.1,3409.0,0.34180339]
[1719767919843,2.028,3409.9,3408.7,0.55]
[1719767920045,2.028,3409.9,3409.1,0.34178414]
[1719767920367,2.028,3409.9,3408.7,0.722503]
[1719767920894,2.028,3409.9,3408.8,6.26679778]
[1719767921273,2.028,3409.9,3408.8,6.20814191]
[1719767921440,2.028,3409.5,3408.8,6.20814191]
[1719767921649,7.65731183,3409.8,3408.8,6.20814191]
[1719767921904,2.028,3409.3,3408.8,6.20814191]
[1719767926984,5.028,3409.7,3408.8,6.20814191]
[1719767927679,2.028,3409.3,3408.8,6.20814191]
[1719767928382,2.2308,3409.3,3408.8,6.20814191]
[1719767937918,2.028,3409.3,3408.8,6.20814191]
[1719767939274,7.32,3409.8,3408.9,0.05866686]
[1719767939485,7.32,3409.8,3409.0,5.8668]
[1719767939774,7.32,3409.8,3409.1,0.05865682]
[1719767939970,7.32,3409.8,3409.2,5.8665]
[1719767940179,7.32,3409.8,3409.3,0.05865682]
[1719767940677,7.32,3409.8,3409.4,0.34214653]
[1719767940819,12.6230757,3410.2,3409.4,0.96887687]
[1719767940820,0.1530757,3410.2,3409.4,0.96887687]
[1719767941025,0.1530757,3410.2,3409.5,5.92465684]
[1719767941253,0.1530757,3410.2,3409.5,6.26668434]
[1719767942264,0.1530757,3410.2,3409.6,0.55]
[1719767942441,0.1530757,3410.2,3409.7,6.87388644]
[1719767942641,0.1530757,3410.2,3409.8,0.60863697]
[1719767942880,0.1530757,3410.2,3409.9,5.8653]
[1719767943049,0.1530757,3410.2,3410.0,0.05863699]
[1719767943379,0.1530757,3410.2,3410.1,5.8649]
[1719767943740,0.1530757,3410.2,3410.1,6.20681201]
[1719767944472,0.1530757,3410.2,3410.1,6.88249321]
[1719767944630,0.1530757,3410.2,3410.1,6.83249321]
[1719767948086,0.1530757,3410.2,3410.1,6.78249321]
[1719767949585,0.1530757,3410.2,3410.1,11.17131321]
[1719767949769,0.1530757,3410.2,3410.1,11.72131321]
[1719767949983,2.2589,3411.8,3410.2,0.75]
[1719767950285,2.2589,3411.8,3410.5,2.05244]
[1719767950466,2.2589,3411.8,3410.6,6.5727181]
[1719767950671,2.2589,3411.8,3410.6,6.91410926]
[1719767951549,2.2589,3411.8,3410.6,9.20020926]
[1719767952839,2.2589,3411.8,3410.6,9.14159116]
[1719767953034,2.2589,3411.8,3410.6,10.44650321]
[1719767953584,2.2589,3411.8,3410.6,8.11040321]
[1719767953782,2.2589,3411.2,3410.6,8.11040321]
[1719767954284,2.2589,3411.2,3410.6,7.61040321]
[1719767954584,2.2589,3411.3,3410.6,7.61040321]
[1719767955064,2.2589,3411.3,3410.6,7.56040321]
[1719767955569,2.2589,3411.3,3410.6,8.11040321]
[1719767955862,2.2597,3410.7,3410.6,7.56040321]
[1719767956171,0.0008,3410.7,3410.6,6.25549116]
[1719767957692,0.00083047,3414.1,3411.8,0.75]
[1719767957855,2.2589,3414.0,3412.4,4.38739]
[1719767958182,2.2589,3415.8,3412.7,2.028]
[1719767958479,2.028,3416.1,3413.6,2.3361]
[1719767958688,0.01432064,3416.9,3415.1,2.04967]
[1719767958855,0.01432064,3416.9,3415.6,0.7]
[1719767959177,0.05,3416.5,3415.7,6.33419244]
[1719767959381,0.01432064,3416.9,3415.7,6.33419244]
[1719767959605,0.05,3416.7,3415.8,0.0585444]
[1719767959803,0.05,3416.7,3415.9,6.005]
[1719767959804,0.05,3416.5,3415.9,6.005]
[1719767960082,0.05,3416.0,3415.9,6.33385407]
[1719767960264,3.979779,3416.0,3415.9,6.33385407]
[1719767960467,6.42183,3416.0,3415.9,6.005]
[1719767960671,9.565174,3416.0,3415.9,6.33385407]
[1719767960849,32.757224,3416.0,3415.9,6.33385407]
[1719767961049,31.944768,3416.0,3415.9,6.005]
[1719767961388,22.817429,3416.0,3415.9,6.005]
[1719767961599,24.567514,3416.0,3415.9,6.005]
[1719767961802,20.932429,3416.0,3415.9,6.33307874]
[1719767962004,23.932429,3416.0,3415.9,3.505]
[1719767962295,0.05,3414.7,3413.3,2.3361]
[1719767962596,1.93071726,3415.9,3413.4,0.31762261]
[1719767962597,0.05,3414.3,3413.4,0.31762261]
[1719767963058,0.05,3414.3,3412.6,2.3361]
[1719767963253,0.05,3414.3,3412.7,0.62136709]
[1719767963667,3.0,3414.7,3412.7,0.62136709]
[1719767963668,0.05,3414.1,3412.7,0.62136709]
[1719767964280,2.55,3414.7,3412.7,0.62136709]
[1719767964480,2.55,3414.7,3412.8,5.8588]
[1719767964689,2.55,3414.7,3412.9,0.31771866]
[1719767964864,0.7328,3414.6,3413.0,6.50781287]
[1719767965062,0.7328,3414.6,3413.1,0.31768024]
[1719767965247,0.7328,3414.6,3413.2,5.8596]
[1719767965451,0.7328,3414.6,3413.3,0.31764182]
[1719767965452,2.693,3414.3,3413.3,0.31764182]
[1719767965688,0.2693,3414.2,3413.3,0.31764182]
[1719767966978,0.2693,3414.2,3413.4,0.05858478]
[1719767967410,0.2693,3414.2,3413.5,0.3173741]
[1719767967557,0.2693,3414.2,3413.5,0.2673741]
[1719767968051,0.2693,3414.2,3413.6,0.05858477]
[1719767968252,2.55,3414.7,3413.7,0.31566902]
[1719767968558,3.0,3414.6,3413.8,5.91717274]
[1719767968852,3.0,3414.6,3413.8,6.17424228]
[1719767969053,0.5085,3414.5,3413.9,0.05857583]
[1719767969299,2.085,3414.8,3414.0,6.17380388]
[1719767969300,3.0,3414.7,3414.0,6.17380388]
[1719767969452,2.085,3414.8,3414.0,6.17380388]
[1719767970065,2.085,3414.8,3414.0,6.12380388]
[1719767970270,1.2405,3414.7,3414.0,6.12380388]
[1719767970470,4.2405,3414.7,3414.0,6.12380388]
[1719767971295,7.32,3415.0,3414.0,6.12380388]
[1719767971296,7.32,3415.0,3414.1,0.05857764]
[1719767971495,7.32,3415.0,3414.2,5.9079]
[1719767971793,7.32,3415.0,3414.3,0.05856445]
[1719767972090,7.32,3415.0,3414.4,6.22320788]
[1719767972309,7.32,3415.0,3414.5,0.05856297]
[1719767972623,7.32,3415.0,3414.6,5.9072]
[1719767972779,7.32,3415.0,3414.7,0.05856297]
[1719767972957,10.013,3415.6,3414.7,0.05856297]
[1719767973153,1.0013,3415.5,3414.8,0.3155467]
[1719767973357,1.0013,3415.5,3414.9,0.0585607]
[1719767973557,4.0013,3415.5,3414.9,0.0585607]
[1719767973792,4.0013,3415.5,3415.0,0.31545106]
[1719767974561,4.0013,3415.5,3414.6,5.9072]
[1719767974911,1.40143,3415.4,3414.6,5.9072]
[1719767975095,1.40143,3415.4,3414.7,0.30487535]
[1719767976702,1.40143,3415.4,3414.8,0.0381311]
[1719767976864,1.40143,3415.4,3414.9,0.30486501]
[1719767977867,9.6351,3416.1,3415.0,0.05856062]
[1719767978066,7.32,3416.1,3415.1,0.30481925]
[1719767978301,7.32,3416.1,3415.2,5.96474893]
[1719767978505,7.32,3416.6,3415.3,0.99028446]
[1719767978709,7.32,3416.6,3415.4,5.9058]
[1719767978911,0.15934885,3416.7,3415.6,2.2504]
[1719767979098,0.15934885,3416.7,3415.7,6.2099451]
[1719767979271,7.32,3417.6,3415.8,0.95956492]
[1719767979473,7.32,3417.6,3415.9,6.20960674]
[1719767979673,2.693,3417.2,3416.0,0.05853027]
[1719767979868,2.693,3417.2,3416.1,6.20916839]
[1719767980374,2.693,3416.7,3416.1,6.20916839]
[1719767980575,0.2693,3416.6,3416.1,6.20916839]
[1719767980881,0.2693,3416.6,3416.1,5.9046]
[1719767981075,0.2693,3416.6,3416.2,0.30441496]
[1719767981720,3.0,3417.2,3416.2,0.30441496]
[1719767981721,2.3151,3418.2,3416.2,0.30441496]
[1719767981872,2.3151,3418.2,3416.3,5.96283945]
[1719767981873,2.693,3417.7,3416.3,5.96283945]
[1719767982068,2.693,3417.7,3416.4,0.30442381]
[1719767982293,8.57901466,3418.4,3416.6,2.2504]
[1719767982294,1.25901466,3418.4,3416.6,2.2504]
[1719767982513,1.25901466,3418.4,3416.7,7.67883868]
[1719767982683,1.25901466,3418.4,3416.8,3.0589095]
[1719767982882,0.02,3419.0,3416.7,10.78183868]
[1719767982883,0.02,3419.0,3418.1,0.75]
[1719767983083,0.02,3419.0,3418.2,6.20499332]
[1719767983512,0.02,3419.0,3418.4,2.2504]
[1719767983690,0.02,3419.0,3418.5,0.30367793]
[1719767983891,0.02,3419.0,3418.5,5.9005]
[1719767984146,0.2713,3418.9,3418.5,5.9005]
[1719767984279,0.02,3419.0,3418.6,0.05850421]
[1719767984597,0.02,3419.0,3418.7,5.9002]
[1719767984918,2.693,3418.9,3418.7,6.20383963]
[1719767985083,0.2713,3418.8,3418.7,6.20383963]
[1719767985708,2.693,3418.9,3418.7,6.20383963]
[1719767986028,8.677219,3418.9,3418.7,6.20383963]
[1719767986233,3.0,3418.8,3418.7,6.20383963]
[1719767986433,12.406207,3418.8,3418.7,6.20383963]
[1719767986591,12.45248367,3418.8,3418.7,6.20383963]
[1719767986792,10.64492539,3418.8,3418.7,6.20383963]
[1719767987097,10.39578039,3418.8,3418.7,2.65487652]
[1719767987431,4.28200667,3418.8,3418.7,2.65487652]
[1719767987621,3.0,3418.8,3418.7,2.65487652]
[1719767987920,0.02,3419.0,3418.7,2.65487652]
[1719767989057,6.257286,3418.9,3418.7,2.65487652]
[1719767989207,5.3151,3418.8,3416.4,2.2504]
[1719767989400,2.826,3418.5,3416.4,2.2504]
[1719767990229,3.0,3418.4,3416.4,2.2504]
[1719767990924,3.0,3418.4,3415.2,2.2504]
[1719767991135,3.0,3418.4,3415.4,2.04953]
[1719767991347,3.0,3418.4,3415.5,5.8557]
[1719767991760,2.826,3417.9,3415.5,5.8557]
[1719767991917,2.3151,3417.7,3415.5,5.8557]
[1719767993319,2.3151,3417.7,3415.6,0.05853696]
[1719767993547,2.3151,3417.7,3415.7,6.2654505]
[1719767993832,2.3151,3417.7,3415.8,0.05853609]
[1719767994032,2.3151,3417.7,3415.9,5.855]
[1719767995828,2.3151,3417.7,3416.0,0.05853606]
[1719767996063,2.3151,3417.7,3415.9,5.855]
[1719767996217,2.3151,3417.7,3415.3,0.505011]
[1719767996218,2.3151,3417.7,3416.1,5.8546]
[1719767996898,2.3151,3417.7,3416.2,0.27296058]
[1719767997228,2.3151,3417.7,3416.3,5.8543]
[1719767997596,2.3151,3417.7,3416.4,0.27292223]
[1719767999061,3.0,3417.8,3416.4,0.33145829]
[1719767999262,3.0,3417.9,3416.5,6.47247583]
[1719767999402,3.0,3417.9,3416.6,0.05852821]
[1719767999595,3.0,3417.9,3416.7,5.8536]
[1719767999900,3.0,3417.9,3416.8,0.27296994]
[1719768000095,3.0,3417.9,3416.9,5.8533]
[1719768000295,3.0,3417.9,3417.0,0.27293161]
[1719768001414,10.32,3418.4,3417.1,0.02522513]
[1719768001620,7.32,3418.4,3417.1,5.91141821]
[1719768002040,7.32,3418.4,3417.2,0.27282094]
[1719768002356,7.32,3418.4,3417.3,5.91111817]
[1719768002716,7.32,3418.9,3417.4,0.27278262]
[1719768003076,2.4681,3419.0,3417.5,5.91071457]
[1719768003462,2.4681,3419.0,3417.6,0.27268355]
[1719768003745,2.4681,3419.0,3417.7,5.8519]
[1719768003957,2.826,3418.5,3417.8,0.27170035]
[1719768004455,3.0,3418.4,3417.8,0.27170035]
[1719768004849,28.747902,3418.3,3417.8,0.27170035]
[1719768005055,3.0,3418.2,3417.8,0.27170035]
[1719768005257,2.4481,3418.1,3417.7,5.8519]
[1719768005460,3.0,3418.2,3417.7,5.8519]
[1719768005631,0.02,3419.0,3417.8,2.3185]
[1719768005954,0.02,3419.0,3417.9,5.8515]
[1719768006255,0.02,3419.0,3417.9,6.11495768]
[1719768006553,0.02,3419.0,3418.0,0.84334577]
[1719768006755,0.02,3419.0,3418.1,6.11461937]
[1719768007148,0.02,3419.0,3418.2,0.05849189]
[1719768007345,0.1181858,3421.2,3419.1,2.3185]
[1719768007550,0.1181858,3421.2,3418.4,5.13673]
[1719768007551,0.1181858,3421.2,3419.9,2.3185]
[1719768007732,0.1181858,3421.2,3420.1,3.839]
[1719768007935,0.1181858,3421.2,3420.3,2.3185]
[1719768008177,0.1181858,3421.2,3420.4,6.11027912]
[1719768008473,0.1181858,3421.2,3420.5,0.05844854]
[1719768008715,0.1181858,3421.2,3420.6,5.8469]
[1719768008828,0.1181858,3421.2,3420.6,6.1682897]
[1719768009023,0.1181858,3421.2,3420.6,6.10984086]
[1719768009857,0.1181858,3421.2,3420.7,0.05846585]
[1719768010037,0.1181858,3421.2,3420.6,6.10984086]
[1719768011168,2.826,3421.0,3420.6,6.10984086]
[1719768011462,32.570509,3420.9,3420.6,6.10984086]
[1719768011757,12.475745,3420.8,3420.6,5.8469]
[1719768011963,3.0,3420.7,3420.6,5.8469]
[1719768012267,20.024127,3420.7,3420.6,5.8469]
[1719768012563,20.024127,3420.7,3418.0,0.84334577]
[1719768012766,3.0,3420.7,3418.1,0.05848919]
[1719768012926,2.826,3420.4,3417.8,2.4239]
[1719768013121,2.3915,3420.3,3417.8,2.4239]
[1719768013361,5.3915,3420.3,3417.9,0.24239]
[1719768013549,5.3915,3420.3,3418.0,0.05849416]
[1719768013925,5.3915,3420.3,3417.9,0.24239]
[1719768014355,0.55,3420.2,3417.9,0.24239]
[1719768014566,3.55,3420.2,3417.9,0.24239]
[1719768014899,3.55,3420.2,3418.0,0.266629]
[1719768015439,3.55,3420.2,3418.1,0.05850476]
[1719768015670,3.0,3420.2,3418.1,0.05850476]
[1719768015987,2.3915,3420.3,3418.2,5.8494]
[1719768015988,5.3915,3420.3,3418.2,5.8494]
[1719768016128,0.55,3420.2,3418.2,5.8494]
[1719768016330,3.55,3420.2,3418.3,0.24593536]
[1719768016564,0.1181858,3421.2,3418.5,0.75]
[1719768016766,0.1181858,3421.2,3418.7,4.47146]
[1719768016982,0.1181858,3421.2,3418.8,7.64686633]
[1719768017185,0.1181858,3421.2,3418.9,0.55]
[1719768017549,0.1181858,3421.2,3419.0,6.08736106]
[1719768017743,0.1181858,3421.2,3419.1,0.55]
[1719768017941,0.1181858,3421.2,3419.2,6.08692277]
[1719768018238,0.1181858,3421.2,3419.3,0.72584038]
[1719768018449,0.1181858,3421.2,3419.4,5.849]
[1719768018669,0.1181858,3421.2,3419.5,0.05847064]
[1719768018868,0.1181858,3421.2,3419.6,5.8486]
[1719768019191,0.1181858,3421.2,3419.6,6.08595338]
[1719768019395,0.1181858,3421.2,3419.7,0.60859534]
[1719768019684,0.1181858,3421.2,3419.8,5.8483]
[1719768019834,0.1181858,3421.2,3419.8,6.0856151]
[1719768020168,2.826,3421.1,3419.8,6.0856151]
[1719768020346,3.0,3421.0,3419.8,6.0856151]
[1719768023069,2.826,3420.5,3419.8,6.0856151]
[1719768023266,13.933159,3420.4,3419.8,6.0856151]
[1719768023567,9.503896,3420.3,3419.8,5.8483]
[1719768023772,3.0,3420.2,3419.9,0.23741364]
[1719768023980,9.651482,3420.2,3419.8,5.8483]
[1719768024148,8.118172,3420.1,3419.9,0.23741931]
[1719768024353,3.0,3420.0,3419.8,5.8483]
[1719768024553,3.0,3420.2,3419.9,0.23741931]
[1719768024751,3.0,3420.4,3419.8,5.8483]
[1719768024945,6.336376,3420.3,3419.9,0.23741931]
[1719768025148,6.336376,3420.3,3419.8,5.8483]
[1719768025149,3.0,3420.2,3419.8,5.8483]
[1719768025486,3.0,3420.2,3419.9,0.23741931]
[1719768025651,3.0,3420.4,3419.9,0.23741931]
[1719768025850,3.0,3420.4,3419.8,5.8483]
[1719768026057,20.473347,3420.3,3420.0,0.23731509]
[1719768026252,3.0,3420.2,3419.9,0.23733422]
[1719768026454,8.549573,3420.1,3418.3,1.171779]
[1719768026655,3.0,3420.0,3418.3,1.171779]
[1719768026861,3.0,3420.2,3418.3,1.171779]
[1719768026862,3.0,3420.2,3418.8,0.5384231]
[1719768027061,3.0,3420.4,3418.8,0.5384231]
[1719768027280,3.0,3420.4,3418.8,0.47993477]
[1719768027454,3.0,3420.4,3418.9,0.05848833]
[1719768027785,3.0,3420.4,3419.0,0.23751073]
[1719768028679,3.0,3420.4,3418.8,0.24239]
[1719768031384,3.0,3420.4,3418.2,1.17182]
[1719768032685,3.0,3420.4,3418.8,0.05849065]
[1719768033357,3.0,3420.4,3418.2,1.17182]
[1719768033946,2.689,3420.0,3418.8,0.27532213]
[1719768034181,3.0,3419.9,3418.9,0.05848822]
[1719768034379,3.0,3419.9,3419.0,0.27577104]
[1719768034546,3.0,3420.4,3419.1,0.05848274]
[1719768035849,0.1,3420.5,3419.1,0.05848274]
[1719768036187,0.1,3420.5,3419.2,8.50595891]
[1719768036389,0.1,3420.5,3419.3,0.9149146]
[1719768036588,0.1,3420.5,3419.4,6.12411842]
[1719768037504,0.1,3420.5,3419.5,0.05847795]
[1719768037686,0.1,3420.5,3419.4,6.12411842]
[1719768037884,2.789,3420.5,3419.6,6.12367793]
[1719768038095,2.789,3420.5,3419.6,5.8486]
[1719768038298,3.0,3420.4,3419.7,0.27481085]
[1719768041323,3.0,3420.4,3419.7,0.22481085]
[1719768043331,3.0,3420.4,3419.8,0.05847918]
[1719768043638,0.1,3420.5,3419.9,0.2731037]
[1719768043920,0.1,3420.5,3420.0,0.05847354]
[1719768044294,0.1,3420.5,3420.1,0.27306323]
[1719768044698,9.880328,3420.4,3419.6,5.8486]
[1719768044997,3.0,3420.3,3419.7,0.27315835]
[1719768045514,3.1,3420.5,3419.7,0.27315835]
[1719768045714,3.1,3420.5,3419.8,0.05848066]
[1719768045715,0.1,3420.5,3419.8,0.05848066]
[1719768046018,3.1,3420.5,3419.9,0.27311929]
[1719768048192,3.1,3420.5,3420.0,0.05847457]
[1719768048420,3.1,3420.5,3420.1,0.27307882]
[1719768049394,3.1,3420.5,3419.6,5.7986]
[1719768049595,3.1,3420.5,3419.7,0.27315977]
[1719768052497,3.0,3420.4,3419.7,0.27315977]
[1719768052925,0.1,3420.5,3419.8,0.05847916]
[1719768053221,0.1,3420.5,3419.9,0.27316747]
[1719768053415,0.1,3420.5,3419.8,0.05847916]
[1719768053617,0.1,3420.5,3419.9,0.27316747]
[1719768053804,0.1,3420.5,3420.0,0.05847389]
[1719768054134,0.1,3420.5,3420.1,2.66132699]
[1719768054292,0.1,3420.5,3420.2,0.05846799]
[1719768054732,0.1,3420.5,3420.3,0.27305534]
[1719768054908,0.1,3420.5,3420.4,0.05846669]
[1719768055429,0.1,3420.5,3420.4,0.3315018]
[1719768055600,0.1,3420.5,3420.4,0.27303511]
[1719768057329,0.1,3420.5,3420.1,2.3882]
[1719768057801,0.1,3420.5,3420.2,0.27307558]
[1719768058998,0.1,3420.5,3419.9,0.05847567]
[1719768059198,0.1,3420.5,3420.0,5.898]
[1719768059400,0.1,3420.5,3420.1,0.71268973]
[1719768059809,0.1,3420.5,3420.2,0.27304724]
[1719768060931,0.1,3420.5,3420.3,0.05847134]
[1719768061226,1.02948754,3421.2,3420.4,8.55844585]
[1719768061227,0.1181858,3421.2,3420.4,8.55844585]
[1719768061425,3.1181858,3421.2,3420.5,0.05845783]
[1719768061739,3.1181858,3421.2,3420.6,6.75859037]
[1719768061942,0.1181858,3421.2,3420.7,0.05845845]
[1719768062230,0.1181858,3421.2,3420.8,6.22792277]
[1719768062539,0.1181858,3421.2,3420.9,0.70896131]
[1719768062828,0.1181858,3421.2,3421.0,6.16902448]
[1719768063408,7.997299,3421.1,3421.0,6.16902448]
[1719768064107,2.689,3421.1,3421.0,6.16902448]
[1719768064306,9.817592,3421.1,3421.0,6.16902448]
[1719768064708,0.1181858,3421.2,3421.0,6.16902448]
[1719768064920,0.1181858,3421.2,3421.0,6.78592693]
[1719768065841,0.1181858,3421.2,3421.1,0.05845854]
[1719768066041,0.007,3422.0,3421.1,8.60648997]
[1719768066347,0.007,3422.0,3421.2,2.3882]
[1719768066499,0.007,3422.0,3421.3,5.95413322]
[1719768066699,0.007,3422.0,3421.4,2.3882]
[1719768066937,0.007,3422.0,3421.5,5.8954]
[1719768067235,7.32,3423.7,3421.6,3.24292867]
[1719768067574,2.689,3422.8,3421.7,6.15843591]
[1719768067835,2.689,3423.2,3421.7,6.15843591]
[1719768068254,2.689,3422.7,3421.7,6.15843591]
[1719768068427,3.0,3422.6,3421.7,6.15843591]
[1719768069847,3.0,3422.6,3421.8,2.3628]
[1719768070009,3.1703,3424.5,3421.9,0.26338132]
[1719768070010,2.689,3423.3,3421.9,0.26338132]
[1719768070209,2.689,3423.3,3421.9,6.15808132]
[1719768070509,3.0,3423.2,3422.0,0.0584335]
[1719768070706,3.0,3423.2,3422.1,5.8944]
[1719768070938,3.0,3423.2,3422.1,6.1577409]
[1719768071125,2.689,3422.8,3422.1,6.1577409]
[1719768071325,3.0,3422.7,3422.1,6.1577409]
[1719768072141,2.689,3422.9,3422.1,6.1577409]
[1719768072510,2.689,3422.4,3422.1,6.1577409]
[1719768072946,3.0,3422.3,3422.1,5.8944]
[1719768073321,3.0,3422.3,3422.2,0.26303179]
[1719768073525,7.976238,3422.3,3422.2,0.26303179]
[1719768073922,7.726383,3422.3,3422.2,0.26303179]
[1719768075247,3.0,3422.3,3422.2,0.26303179]
[1719768075454,6.029561,3422.3,3422.2,0.26303179]